Cogmind - Beta 12 @@@ ROGUE MODE // 2023.10.08 @ 18:15:11 Player: Figgis Result: Self-destructed Performance ------------- Evolutions (5) 2500 Regions Visited (11) 2200 Robots Destroyed (104) 520 Value Destroyed (3188) 3188 Prototype IDs (9) 180 Alien Tech Used (0) 0 Bonus (651) 651 TOTAL SCORE: 9239 Bonus ------- High Alert Combat Kills 66 Follower Combat Kills 348 Aligned with FarCom 300 Friendly Fire -63 Cogmind --------- Core Integrity 863/1000 Matter 100/300 Energy 160/160 System Corruption 3% Temperature Cool (0) Movement Flying (29) Location -5/Factory Parts ------- > --- POWER (2) -------- Light Nuclear Core > --- PROPULSION (5) --- VTOL Module VTOL Module VTOL Module > --- UTILITY (6) ------ (None) > --- WEAPON (4) ------- (None) > --- INVENTORY (5) ---- Hardened Medium Armor Plating EM Disruption Field Autogun KE Penetrator Heavy Rocket Launcher Peak State ------------ > --- POWER ------------ Heavy Ion Engine Deuterium Engine > --- PROPULSION ------- Carbon-fiber Leg Carbon-fiber Leg Carbon-fiber Leg Carbon-fiber Leg Flexi-carbon Leg > --- UTILITY ---------- Huge Storage Unit Matter Compressor Kinecellerator Hardened Medium Armor Plating Hardened Medium Armor Plating > --- WEAPON ----------- Gatling Laser Proton Cannon Gauss Rifle > --- INVENTORY -------- Heavy Ion Engine Light Fission Core Improved Aluminum Leg Carbon-fiber Leg Carbon-fiber Leg Carbon-fiber Leg VSS Leg Improved Carbon-fiber Leg Improved Carbon-fiber Leg Improved Carbon-fiber Leg Improved Titanium Leg Flexi-carbon Leg Kinecellerator Hardened Medium Armor Plating Hardened Medium Armor Plating Heavy Laser Gauss Rifle Heavy Machine Gun Advanced Assault Cannon Heavy Rocket Launcher [Rating: 59] Favorites ----------- Power Ion Engine Engine Ion Engine Power Core Light Nuclear Core Propulsion Aluminum Leg Treads Light Treads Leg Aluminum Leg Flight Unit VTOL Module Utility Hardened Medium Armor Plating Device Hardlight Generator Storage Large Storage Unit Protection Hardened Medium Armor Plating Weapon Gauss Rifle Energy Gun Gatling Laser Energy Cannon Proton Cannon Ballistic Gun Gauss Rifle Ballistic Cannon Gauss Cannon Build | -11 -10 -10 -9 -9 -9 -8 -8 -8 -7 -6 -5 ------- Run | Jun Mat Min Mat Min Exi Min Mat Sto Fac Fac Fac Slots Evolved 10 | . . . 2 . . . 2 . 2 2 2 Power 1 | . . . . . . . . . 1 . . Propulsion 3 | . . . . . . . 1 . 1 1 . Utility 4 | . . . 2 . . . 1 . . . 1 Weapon 2 | . . . . . . . . . . 1 1 Parts Attached 101 | 6 3 5 1 . 2 4 5 20 6 40 9 Power 14 | 1 . 1 . . . 1 . 2 3 4 2 Engine 10 | 1 . 1 . . . . . 2 3 3 . Core 4 | . . . . . . 1 . . . 1 2 Reactor . | . . . . . . . . . . . . Propulsion 34 | 2 . 2 . . . 2 2 4 1 16 5 Treads 2 | 2 . . . . . . . . . . . Leg 29 | . . 2 . . . 2 2 4 1 16 2 Wheel . | . . . . . . . . . . . . Hover . | . . . . . . . . . . . . Flight 3 | . . . . . . . . . . . 3 Utility 24 | 1 1 1 1 . 1 1 3 5 1 9 . Device 6 | . . 1 . . . . 1 1 . 3 . Storage 4 | 1 1 . . . . . . 1 . 1 . Processor . | . . . . . . . . . . . . Hackware . | . . . . . . . . . . . . Protection 14 | . . . 1 . 1 1 2 3 1 5 . Artifact . | . . . . . . . . . . . . Weapon 29 | 2 2 1 . . 1 . . 9 1 11 2 Energy Gun 7 | . . . . . . . . 4 . 3 . Energy Cannon 3 | . . . . . . . . . . 1 2 Ballistic Gun 17 | 2 2 1 . . 1 . . 5 . 6 . Ballistic Cannon 2 | . . . . . . . . . 1 1 . Launcher . | . . . . . . . . . . . . Special Weapon . | . . . . . . . . . . . . Impact Weapon . | . . . . . . . . . . . . Slashing Weapon . | . . . . . . . . . . . . Piercing Weapon . | . . . . . . . . . . . . Special Melee Weapon . | . . . . . . . . . . . . Unidentified Prototypes 9 | . . 1 . . 1 . . 7 . . . Corrupted Parts 1 | . . . . . . . . . . . 1 System Corruption 3 | . . . . . . . . . . . 3 Parts Lost 43 | . . 2 . . . . 2 1 . 35 3 Power 6 | . . 1 . . . . . . . 4 1 Propulsion 14 | . . 1 . . . . . . . 12 1 Utility 14 | . . . . . . . 2 1 . 11 . Weapon 9 | . . . . . . . . . . 8 1 Highest Loss Streak 10 | . . 2 . . . . 2 1 . 10 2 To Critical Strikes 1 | . . . . . . . . . . 1 . Average Slot Usage (%) 88 | . 85 90 88 88 95 84 85 99 99 88 20 Engine 9 | . 14 13 11 11 11 7 . 8 14 11 . Core 1 | . . . . . . 3 9 . . . 4 Treads 3 | . 28 13 . . . . . . . . . Leg 22 | . . 14 22 22 22 22 27 27 30 31 7 Device 5 | . . 5 11 11 11 . 4 8 7 4 . Storage 9 | . 14 14 11 11 11 11 9 9 7 7 . Protection 18 | . . . 11 11 22 29 27 27 23 13 . Ballistic Gun 15 | . 28 28 22 22 18 11 9 17 14 8 . Naked Turns 22 | . . . . . . . . . . 20 2 Heaviest Build 138 | 14 31 32 35 35 42 43 46 119 131 138 13 Greatest Support 89 | 40 40 40 20 20 20 20 30 45 60 89 33 Greatest Overweight (x) 11 | 4 . 1 1 1 2 4 1 11 2 4 1 Average Overweight (x) 1 | 1 . . 1 1 1 2 1 2 1 . . Largest Inventory Capacity 25 | 8 15 15 15 15 15 15 15 25 25 25 5 Average Capacity 18 | 7 9 15 15 15 15 15 15 24 25 23 5 Most Carried 25 | 4 11 14 12 12 15 15 15 25 25 25 5 Average Carried 16 | 2 5 10 10 12 12 14 14 23 24 19 4 Final Capacity 25 | 8 15 15 15 15 15 15 15 25 25 5 5 Final Carried 25 | 2 11 11 12 12 14 15 15 25 25 5 5 Class Distribution -------------------- 56% | Mutant 36% | Scavenger-Mutant 3% | Scavenger-Tank Dominant Class ---------------- Mutant | -10/Materials Mutant | -10/Mines Mutant | -9/Materials Mutant | -9/Mines Scavenger-Mutant | -9/Exiles Scavenger-Mutant | -8/Mines Scavenger-Mutant | -8/Materials Mutant | -8/Storage Mutant | -7/Factory Mutant | -6/Factory Mutant | -5/Factory Resources | -11 -10 -10 -9 -9 -9 -8 -8 -8 -7 -6 -5 ----------- Run | Jun Mat Min Mat Min Exi Min Mat Sto Fac Fac Fac Matter Collected 2287 | 221 267 130 54 46 10 60 50 527 215 595 112 Remotely . | . . . . . . . . . . . . Salvage Created 4117 | . 383 214 73 58 . 699 777 776 296 759 82 Parts 257 | . 35 12 8 6 . 34 49 49 27 32 5 Haulers Intercepted 4 | . . . . . . . 1 3 . . . Recyclers Shooed 6 | . . . . . . . 1 . . 4 1 Parts Field Recycled . | . . . . . . . . . . . . Retrieved Matter . | . . . . . . . . . . . . Parts Self-Destructed . | . . . . . . . . . . . . Prevented . | . . . . . . . . . . . . Kills | -11 -10 -10 -9 -9 -9 -8 -8 -8 -7 -6 -5 ------- Run | Jun Mat Min Mat Min Exi Min Mat Sto Fac Fac Fac Combat Hostiles Destroyed 73 | . 12 7 1 4 . 12 12 9 4 9 3 Guns 67 | . 12 7 1 4 . 12 12 9 4 6 . Cannons 5 | . . . . . . . . . . 2 3 AOE 1 | . . . . . . . . . . 1 . Classes Destroyed 13 | . 3 . 1 . . 4 2 . 2 1 . Worker 7 | . . . . . . 1 . 3 . 3 . Builder 5 | . . . . . . 2 1 1 1 . . Tunneler 1 | . . . . . . . . . . 1 . Hauler 4 | . . . . . . . 1 3 . . . Recycler 5 | . . . . . . . 1 1 1 2 . Watcher 9 | . 3 . 1 . . . 3 1 1 . . Swarmer 19 | . 6 3 . 4 . . 3 . . . 3 Grunt 37 | . 6 4 . . . 10 6 6 2 3 . Brawler 1 | . . . . . . 1 . . . . . Duelist 1 | . . . . . . 1 . . . . . Sentry 10 | . . . 1 . . . 3 3 . 3 . Hunter 3 | . . . . . . . . . 1 2 . Programmer 2 | . . . . . . . . . 1 1 . Best Kill Streak 7 | . 4 3 1 4 . 5 7 4 3 4 2 Combat Bots Only 4 | . 4 3 1 4 . 3 4 2 2 2 2 Max Kills in Single Turn 2 | . 1 2 1 2 . 2 2 2 2 2 1 Gunslinging 1 | . . 1 . 1 . . . . . . . Exploded 1 | . . . . . . . . . . 1 . Melee . | . . . . . . . . . . . . Uniques/NPCs Destroyed . | . . . . . . . . . . . . Combat | -11 -10 -10 -9 -9 -9 -8 -8 -8 -7 -6 -5 -------- Run | Jun Mat Min Mat Min Exi Min Mat Sto Fac Fac Fac Damage Taken 8172 | . 349 331 88 97 . 137 225 509 295 5652 489 Core 987 | . 41 76 17 19 . 35 . 34 29 599 137 Absorbed by Shields 196 | . . . . . . . . 112 84 . . Redirected to Shielding 66 | . . . . . . . 29 . 37 . . Regen/Repaired (Parts) 117 | . . . . . . . . . . 117 . Core Remaining (%) 75 | 100 . 53 . . . 82 . 93 95 29 . Volleys Fired 222 | . 33 15 8 7 . . . 56 22 70 11 Largest 3 | . 2 2 2 2 . . . 2 2 3 1 Hottest 183 | . 46 46 46 46 . . . 56 56 183 75 Shots Fired 557 | . 66 30 16 14 . 52 59 126 44 139 11 Gun 497 | . 66 30 16 14 . 52 59 126 44 90 . Cannon 60 | . . . . . . . . . . 49 11 Launcher . | . . . . . . . . . . . . Special . | . . . . . . . . . . . . Kinetic 511 | . 66 30 16 14 . 52 59 126 44 104 . Thermal 27 | . . . . . . . . . . 27 . Explosive . | . . . . . . . . . . . . Electromagnetic 19 | . . . . . . . . . . 8 11 Robot Hit Streak 19 | . 7 9 11 2 . 10 18 19 5 5 3 Robot Miss Streak 5 | . 3 2 2 4 . 3 2 4 2 5 3 Penetration Max 1 | . . . . . . . . 1 1 1 . Secondary Targets 6 | . 3 1 . 1 . . . . . 1 . Max Gunslinging Chain 1 | . 1 1 . 1 . . . . . 1 . Autonomous 128 | . . . . . . 52 59 17 . . . Shots Hit Robots 333 | . 42 23 12 5 . 40 49 63 25 68 6 Core Hits 163 | . 23 10 3 4 . 22 22 26 13 35 5 Critical Kills 2 | . . . . . . . . . 1 1 . Critical Parts Destroyed 3 | . 1 . . . . . 1 . 1 . . Critical Strikes 5 | . 1 . . . . . 1 . 2 1 . Destroy 5 | . 1 . . . . . 1 . 2 1 . Melee Attacks . | . . . . . . . . . . . . Impact . | . . . . . . . . . . . . Slashing . | . . . . . . . . . . . . Piercing . | . . . . . . . . . . . . Sneak Attacks . | . . . . . . . . . . . . Combat Hostiles . | . . . . . . . . . . . . Follow-up Attacks . | . . . . . . . . . . . . Damage Inflicted 8654 | . 606 407 180 84 . 1145 1705 1564 596 2168 199 Guns 7417 | . 606 407 180 84 . 1145 1705 1563 590 1137 . Cannons 850 | . . . . . . . . . . 677 173 Explosions 315 | . . . . . . . . . . 315 . Melee . | . . . . . . . . . . . . Ramming 72 | . . . . . . . . 1 6 39 26 Kinetic 7620 | . 606 407 180 84 . 1145 1705 1563 590 1340 . Thermal 633 | . . . . . . . . . . 633 . Explosive . | . . . . . . . . . . . . Electromagnetic 329 | . . . . . . . . . . 156 173 Impact . | . . . . . . . . . . . . Slashing . | . . . . . . . . . . . . Piercing . | . . . . . . . . . . . . Highest Corruption 16 | . . . . . . . . . . 16 3 Average Corruption 6 | . . . . . . . . . . 6 3 Corruption Purged . | . . . . . . . . . . . . Corruption Blocked . | . . . . . . . . . . . . Effects 28 | . . . . . . . . . . 25 3 Message Errors 4 | . . . . . . . . . . 4 . Matter Fused 6 | . . . . . . . . . . 6 . Heat Flow Errors 4 | . . . . . . . . . . 4 . Energy Discharges 3 | . . . . . . . . . . 1 2 Parts Rejected 1 | . . . . . . . . . . 1 . Parts Fused 1 | . . . . . . . . . . . 1 Data Loss (minor) 4 | . . . . . . . . . . 4 . Data Loss (major) 1 | . . . . . . . . . . 1 . Alerts 1 | . . . . . . . . . . 1 . Misdirections 1 | . . . . . . . . . . 1 . Weapon Failures 2 | . . . . . . . . . . 2 . Overload Shots . | . . . . . . . . . . . . Overflow Damage 43 | . . . . . . . . . . 35 8 Projectiles 10 | . . . . . . . . . . 2 8 Explosions 27 | . . . . . . . . . . 27 . Melee 6 | . . . . . . . . . . 6 . Knockbacks 5 | . . . . . . . . . . 5 . Impact . | . . . . . . . . . . . . Kinetic 5 | . . . . . . . . . . 5 . Secondary . | . . . . . . . . . . . . Self-Inflicted Damage 148 | . . . . . . . . . . 147 1 Shots 2 | . . . . . . . . . . 2 . Rammed 1 | . . . . . . . . . . . 1 Targets Rammed 17 | . . . . . . . . 1 1 6 9 Kicked 16 | . . . . . . . . 1 1 6 8 Crushed . | . . . . . . . . . . . . Highest Temperature 549 | . 8 18 4 . . 12 11 280 156 549 45 Average Temperature 170 | . 2 4 4 . . 12 11 72 57 252 18 Received Heat Transfer 1610 | . 102 165 18 . . 99 117 287 36 786 . Effects 42 | . . . . . . . . . . 42 . Shutdowns 20 | . . . . . . . . . . 20 . Energy Bleed 7 | . . . . . . . . . . 7 . Interference 6 | . . . . . . . . . . 6 . Short Circuit 3 | . . . . . . . . . . 3 . Damage (minor) 1 | . . . . . . . . . . 1 . Damage (major) 5 | . . . . . . . . . . 5 . Siege Activations . | . . . . . . . . . . . . Robots Corrupted . | . . . . . . . . . . . . Combat Hostiles . | . . . . . . . . . . . . Parts Fried 1 | . . . . . . . . . . 1 . Impact Corruptions 1 | . . . . . . . . . . 1 . Robots Melted . | . . . . . . . . . . . . Combat Hostiles . | . . . . . . . . . . . . Parts Melted . | . . . . . . . . . . . . Heat Transferred 845 | . . . . . . . . . . 845 . Parts Sabotaged . | . . . . . . . . . . . . Parts Stolen . | . . . . . . . . . . . . Parts Stripped . | . . . . . . . . . . . . Power Chain Reactions 1 | . . . . . . . . . . 1 . Missiles Intercepted . | . . . . . . . . . . . . Alert | -11 -10 -10 -9 -9 -9 -8 -8 -8 -7 -6 -5 ------- Run | Jun Mat Min Mat Min Exi Min Mat Sto Fac Fac Fac Peak Influence 559 | . 122 150 60 143 . 88 451 559 245 97 77 Initial 145 | . . 30 . 23 . . 30 145 113 37 7 Average 140 | . 48 59 22 136 . 61 251 358 118 27 26 Maximum Alert Level 2 | . . . . . . . 2 2 1 . . Low Security (%) 71 | 100 100 100 100 100 . 100 45 1 81 100 100 Level 1 18 | . . . . . . . 22 61 18 . . Level 2 10 | . . . . . . . 32 36 . . . Level 3 . | . . . . . . . . . . . . Level 4 . | . . . . . . . . . . . . Level 5 . | . . . . . . . . . . . . High Security . | . . . . . . . . . . . . Max Security . | . . . . . . . . . . . . Squads Dispatched 12 | . 2 . . . . . 1 1 1 6 1 Investigation 1 | . . . . . . . 1 . . . . Extermination 2 | . . . . . . . . . . 1 1 Reinforcement 8 | . 2 . . . . . . 1 1 4 . Assault . | . . . . . . . . . . . . Garrison 1 | . . . . . . . . . . 1 . Intercept . | . . . . . . . . . . . . Searches Triggered . | . . . . . . . . . . . . Construction Impeded 1 | . . . . . . . . . . 1 . Haulers Reinforced 2 | . . . . . . . . . 1 1 . Active Scanning Responses . | . . . . . . . . . . . . Cargo Convoy Interrupts . | . . . . . . . . . . . . Stealth | -11 -10 -10 -9 -9 -9 -8 -8 -8 -7 -6 -5 --------- Run | Jun Mat Min Mat Min Exi Min Mat Sto Fac Fac Fac Distress Signals 4 | . 1 . . . . . . 2 . 1 . Communications Jammed . | . . . . . . . . . . . . Distress Signals . | . . . . . . . . . . . . Times Spotted 112 | . 18 7 2 4 . 10 13 22 8 21 7 Peak Tracking Total 7 | . 4 3 1 4 . 3 4 4 2 7 5 Tactical Retreats 5 | . 1 . . . . . 2 . . 1 1 Traps | -11 -10 -10 -9 -9 -9 -8 -8 -8 -7 -6 -5 ------- Run | Jun Mat Min Mat Min Exi Min Mat Sto Fac Fac Fac Traps Triggered 4 | . . . . . . . . . . 4 . Indirectly . | . . . . . . . . . . . . Trap Hack Attempts . | . . . . . . . . . . . . Triggered . | . . . . . . . . . . . . Disarmed . | . . . . . . . . . . . . Reprogrammed . | . . . . . . . . . . . . Reused . | . . . . . . . . . . . . Traps Extracted . | . . . . . . . . . . . . Installed . | . . . . . . . . . . . . Triggered . | . . . . . . . . . . . . Machines | -11 -10 -10 -9 -9 -9 -8 -8 -8 -7 -6 -5 ---------- Run | Jun Mat Min Mat Min Exi Min Mat Sto Fac Fac Fac Machines Disabled 15 | . 1 . . 1 . . 2 6 . 4 1 Max in Single Turn 3 | . 1 . . 1 . . 2 1 . 3 1 Garrison Access 1 | . . . . . . . . . . 1 . Machines Repaired . | . . . . . . . . . . . . Machines Sabotaged . | . . . . . . . . . . . . Overloaded Fab Kills . | . . . . . . . . . . . . Hacking | -11 -10 -10 -9 -9 -9 -8 -8 -8 -7 -6 -5 --------- Run | Jun Mat Min Mat Min Exi Min Mat Sto Fac Fac Fac Machines Accessed 33 | . 5 . 1 . . 1 3 10 5 5 3 Terminals 20 | . 4 . 1 . . 1 2 9 1 1 1 Fabricators 3 | . . . . . . . . . . 1 2 Repair Stations 6 | . 1 . . . . . . . 3 2 . Recycling Units . | . . . . . . . . . . . . Scanalyzers 2 | . . . . . . . 1 . 1 . . Garrison Access 2 | . . . . . . . . 1 . 1 . Total Hacks 75 | . 19 . 2 . . 3 8 18 8 12 5 Successful 30 | . 5 . 1 . . 2 3 10 3 5 1 Failed 43 | . 13 . 1 . . . 5 8 5 7 4 Catastrophic 9 | . 1 . . . . . 3 . 1 3 1 Database Lockouts 2 | . 1 . . . . 1 . . . . . Manual 30 | . 13 . 2 . 1 3 4 2 2 3 . Terminals 48 | . 16 . 2 . . 3 4 16 2 3 2 Fabricators 4 | . . . . . . . . . . 1 3 Repair Stations 14 | . 3 . . . . . . . 4 7 . Recycling Units . | . . . . . . . . . . . . Scanalyzers 6 | . . . . . . . 4 . 2 . . Garrison Access 3 | . . . . . . . . 2 . 1 . Terminal Hacks 20 | . 5 . 1 . . 2 1 10 1 . . Part Schematic 1 | . . . . . . . . 1 . . . Robot Analysis 7 | . 2 . . . . 1 . 3 1 . . Open Door 4 | . . . . . . . . 4 . . . Branch Access Points 4 | . 1 . 1 . . 1 1 . . . . Unreport Threat 1 | . 1 . . . . . . . . . . Locate Traps 2 | . 1 . . . . . . 1 . . . Zone Layout 1 | . . . . . . . . 1 . . . Fabricator Hacks 2 | . . . . . . . . . . 1 1 Network Status 2 | . . . . . . . . . . 1 1 Repair Station Hacks 4 | . . . . . . . . . 1 3 . Scan Component 3 | . . . . . . . . . 1 2 . Repair 1 | . . . . . . . . . . 1 . Recycling Unit Hacks . | . . . . . . . . . . . . Scanalyzer 3 | . . . . . . . 2 . 1 . . Insert Component 2 | . . . . . . . 1 . 1 . . Analyze 1 | . . . . . . . 1 . . . . Garrison Access Hacks 1 | . . . . . . . . . . 1 . Seal Access 1 | . . . . . . . . . . 1 . Unauthorized Hacks . | . . . . . . . . . . . . Terminals . | . . . . . . . . . . . . Fabricators . | . . . . . . . . . . . . Repair Stations . | . . . . . . . . . . . . Recycling Units . | . . . . . . . . . . . . Scanalyzers . | . . . . . . . . . . . . Garrison Access . | . . . . . . . . . . . . Data Cores Recovered . | . . . . . . . . . . . . Used . | . . . . . . . . . . . . Hacking Detections 28 | . 6 . 1 . . . 3 6 5 4 3 Full Trace Events 1 | . . . . . . . 1 . . . . Feedback Events . | . . . . . . . . . . . . Feedback Blocked . | . . . . . . . . . . . . Robot Schematics Acquired . | . . . . . . . . . . . . Robots Built . | . . . . . . . . . . . . Authchips . | . . . . . . . . . . . . Time . | . . . . . . . . . . . . Total Robot Build Rating . | . . . . . . . . . . . . Part Schematics Acquired 1 | . . . . . . . . 1 . . . Parts Built . | . . . . . . . . . . . . Authchips . | . . . . . . . . . . . . Time . | . . . . . . . . . . . . Total Part Build Rating . | . . . . . . . . . . . . Parts Repaired 1 | . . . . . . . . . . 1 . Time 61 | . . . . . . . . . . 61 . Parts Recycled . | . . . . . . . . . . . . Recycled Matter . | . . . . . . . . . . . . Retrieved Matter . | . . . . . . . . . . . . Retrieved Components . | . . . . . . . . . . . . Parts Scanalyzed 1 | . . . . . . . 1 . . . . Part Schematics Acquired . | . . . . . . . . . . . . Parts Damaged . | . . . . . . . . . . . . Bothacking | -11 -10 -10 -9 -9 -9 -8 -8 -8 -7 -6 -5 ------------ Run | Jun Mat Min Mat Min Exi Min Mat Sto Fac Fac Fac Used RIF Installer . | . . . . . . . . . . . . Robots Hacked . | . . . . . . . . . . . . Non-combat . | . . . . . . . . . . . . Combat . | . . . . . . . . . . . . Robot Hacks Applied . | . . . . . . . . . . . . Relay Couplers Released . | . . . . . . . . . . . . Fabnet Peak Effective % . | . . . . . . . . . . . . Robots Rewired . | . . . . . . . . . . . . Allies Hacked . | . . . . . . . . . . . . Hacks Repelled . | . . . . . . . . . . . . Allies | -11 -10 -10 -9 -9 -9 -8 -8 -8 -7 -6 -5 -------- Run | Jun Mat Min Mat Min Exi Min Mat Sto Fac Fac Fac Total Allies 12 | . . . . 2 . . . 10 . . . Largest Group 10 | . . . . 2 1 . . 10 . . . Highest-Rated Group 173 | . . . . 45 31 . . 173 . . . Highest-Rated Ally 31 | . . . . 31 31 . . 29 . . . Total Orders . | . . . . . . . . . . . . Ally Attacks 86 | . . . . . . . . 86 . . . Total Damage 1059 | . . . . . . . . 1059 . . . Kills 11 | . . . . . . . . 11 . . . Allies Corrupted . | . . . . . . . . . . . . Allies Melted . | . . . . . . . . . . . . Intel | -11 -10 -10 -9 -9 -9 -8 -8 -8 -7 -6 -5 ------- Run | Jun Mat Min Mat Min Exi Min Mat Sto Fac Fac Fac Robot Analysis Total 5 | . 2 . . . . 1 . 2 . . . Derelict Logs Recovered 2 | . . 2 . . . . . . . . . Drone Launches . | . . . . . . . . . . . . Drone Recoveries . | . . . . . . . . . . . . Exploration | -11 -10 -10 -9 -9 -9 -8 -8 -8 -7 -6 -5 ------------- Run | Jun Mat Min Mat Min Exi Min Mat Sto Fac Fac Fac Turns Passed 10175 | 78 888 1006 195 100 857 1550 446 2333 761 1525 436 Spaces Moved 4133 | 36 449 516 81 42 408 579 213 682 252 632 243 Core 62 | 17 . . . . . . . . . 41 4 Treads 731 | 19 449 263 . . . . . . . . . Legs 3322 | . . 253 81 42 408 579 213 682 252 591 221 Wheels . | . . . . . . . . . . . . Hover . | . . . . . . . . . . . . Flight 18 | . . . . . . . . . . . 18 Fastest Speed 50 | 50 160 160 190 190 190 260 190 190 190 50 50 Average Speed 213 | 158 160 174 190 190 209 260 190 305 259 179 118 Slowest Speed 890 | 250 160 190 190 190 260 400 190 890 260 400 120 Overloaded Moves . | . . . . . . . . . . . . Propulsion Burnouts . | . . . . . . . . . . . . Robots Hopped . | . . . . . . . . . . . . Cave-ins Triggered 1 | . . . . . . . . . . 1 . Exploration Rate (%) 44 | 3 78 93 10 11 90 98 28 83 10 18 7 Regions Visited 11 Branch Regions 5 Pre-discovered Areas . | . . . . . . . . . . . . Known Exits Taken 3 | . 1 . 1 . . . 1 . . . . Unknown Exits Taken 8 | 1 . 1 . 1 1 1 . 1 1 1 . Scrap Searched 2 | . . 1 . . . 1 . . . . . Spaces Dug 5 | . . . . . . . . 3 . 2 . Terrain Destroyed 152 | . . . . . . 37 74 10 1 30 . Melee . | . . . . . . . . . . . . Projectile 87 | . . . . . . 37 29 7 1 13 . AOE 62 | . . . . . . . 45 . . 17 . Terrain Rammed . | . . . . . . . . . . . . Walls Destroyed . | . . . . . . . . . . . . Machines Disabled . | . . . . . . . . . . . . Actions | -11 -10 -10 -9 -9 -9 -8 -8 -8 -7 -6 -5 --------- Run | Jun Mat Min Mat Min Exi Min Mat Sto Fac Fac Fac Total 5069 | 57 552 591 107 49 414 628 258 824 317 896 376 Wait 439 | 8 57 47 16 1 . 29 25 27 26 104 99 Move 4122 | 35 448 515 80 41 407 578 212 681 251 631 243 Hop . | . . . . . . . . . . . . Pick Up 94 | 8 10 6 2 . 3 7 9 21 5 18 5 Fast Attach 13 | . . . . . . . 1 1 3 4 4 Attach 61 | 6 1 3 1 . 2 1 3 8 2 29 5 Detach 3 | . . . . . 1 1 . 1 . . . Swap 27 | . 2 2 . . . 3 1 11 1 7 . Drop 61 | . 1 3 . . 1 9 7 17 6 17 . Fire 222 | . 33 15 8 7 . . . 56 22 70 11 Melee . | . . . . . . . . . . . . Ram 1 | . . . . . . . . . . . 1 Kick 16 | . . . . . . . . 1 1 6 8 Crush . | . . . . . . . . . . . . Escape Stasis 10 | . . . . . . . . . . 10 . Rewire . | . . . . . . . . . . . . Trap . | . . . . . . . . . . . . Miscellaneous . | . . . . . . . . . . . . Route ------- -11/Junkyard -10/Materials (discovered 3 exits: *Mat x2 / *Min) -10/Mines (discovered 2 exits: *Mat x2) -9/Materials (discovered 2 exits: *Min x2) -9/Mines (discovered 2 exits: *Mat / *Exi) -9/Exiles -8/Mines (discovered 2 exits: *Mat x2) -8/Materials (discovered 2 exits: *Sto x2) -8/Storage -7/Factory -6/Factory -5/Factory History --------- Turn | Location | Event 24 | -11/Junkyard | Discovered new exit (range 16) 79 | -11/Junkyard | Entered Materials 151 | -10/Materials | Identified exit to Mines 308 | -10/Materials | Build established: Mutant 500 | -10/Materials | Discovered new exit (range 15) 531 | -10/Materials | Central database locked down 781 | -10/Materials | Discovered new exit (range 4) 967 | -10/Materials | Entered Mines 1191 | -10/Mines | Learned Materials trap positions 1237 | -10/Mines | Found a hidden stash of uninstalled traps 1389 | -10/Mines | Discovered new exit (range 11) 1411 | -10/Mines | Received a Rocket Launcher from a helpful Derelict 1602 | -10/Mines | Found a damaged Exp. Sensor Array with a note attached 1606 | -10/Mines | Found Prototype Device 1607 | -10/Mines | Identified Exp. Sensor Array 1628 | -10/Mines | Discovered new exit (range 5) 1653 | -10/Mines | Learned Materials emergency access door positions 1973 | -10/Mines | Entered Materials 1973 | -9/Materials | Evolved 2 slots: Utility x2 1974 | -9/Materials | Loaded intel: 22 trap records 2001 | -9/Materials | Identified exit to Mines 2168 | -9/Materials | Entered Mines 2210 | -9/Mines | Discovered new exit (range 12) 2261 | -9/Mines | Deemed a non-threat by the Exiles lab entrance 2261 | -9/Mines | Discovered new exit (range 5) 2268 | -9/Mines | Entered Exiles 2268 | -9/Exiles | Accompanied by 1 ally 2298 | -9/Exiles | Led the pair of lost Derelicts to a safe place 2317 | -9/Exiles | Met 8R-AWN 2349 | -9/Exiles | Met EX-HEX 2511 | -9/Exiles | Visited The Gauntlet 2574 | -9/Exiles | Build established: Scavenger-Mutant 2675 | -9/Exiles | Met EX-DEC 2751 | -9/Exiles | Met EX-BIN 2780 | -9/Exiles | Aligned with FarCom system 2782 | -9/Exiles | Given EX-Vault access code 2825 | -9/Exiles | Opened EX-Vault 2833 | -9/Exiles | Found Prototype Ballistic Gun 2835 | -9/Exiles | Identified AWS/Gauss 2886 | -9/Exiles | Warned to stay clear of 0b10 Research branches 3094 | -9/Exiles | Discovered new exit (range 14) 3125 | -9/Exiles | Left Exiles lab with AWS/Gauss 3125 | -9/Exiles | Entered Mines 3560 | -8/Mines | Central database locked down 3898 | -8/Mines | Discovered new exit (range 9) 4384 | -8/Mines | Discovered new exit (range 15) 4675 | -8/Mines | Entered Materials 4675 | -8/Materials | Evolved 2 slots: Propulsion x1, Utility x1 4769 | -8/Materials | Identified exit to Storage 5121 | -8/Materials | Entered Storage 5134 | -8/Storage | Assisted by bots powering up and referring to "LRC-V3" 5896 | -8/Storage | Build established: Mutant 7415 | -8/Storage | Discovered new exit (range 15) 7454 | -8/Storage | Entered Factory 7454 | -7/Factory | Evolved 2 slots: Power x1, Propulsion x1 8112 | -7/Factory | Discovered new exit (range 4) 8215 | -7/Factory | Entered another Factory area 8215 | -6/Factory | Evolved 2 slots: Propulsion x1, Weapon x1 8853 | -6/Factory | Lost 6 parts (1p1n3u1w) 9007 | -6/Factory | Lost 4 parts (1n2u1w) 9114 | -6/Factory | Repaired Broken Gauss Rifle 9310 | -6/Factory | Crushed by falling debris 9310 | -6/Factory | System corruption reached 10% 9359 | -6/Factory | Lost 10 parts (1p3n3u3w) 9537 | -6/Factory | Garrison activated, responded to threat 9660 | -6/Factory | Core integrity fell below 50% 9687 | -6/Factory | Lost 10 parts (2p2n3u3w) 9733 | -6/Factory | Discovered new exit (range 7) 9740 | -6/Factory | Entered another Factory area 9740 | -5/Factory | Evolved 2 slots: Utility x1, Weapon x1 9743 | -5/Factory | Lost 3 parts (3n) 10176 | -5/Factory | Self-destructed Last Messages --------------- 10037_ Destroyed Com. Wheel. 10041_ Destroyed Hpw. Tractor Beam. 10046_ Acquired Autogun. 10053_ Acquired VTOL Module. 10056_ Acquired 27 matter. 10057_ Acquired 25 matter. 10061_ Acquired VTOL Module. 10063_ Acquired 30 matter. 10066_ Acquired Corrupted VTOL Module. 10066_ Integrated Corrupted VTOL Module (+3). 10066_ Complication: Flexi-carbon Leg rejected. 10066_ Complication: Proton Cannon rejected. 10068_ Acquired Proton Cannon. 10075_ R-10 Processor collects Flexi-carbon Leg. 10079_ System corrupted: Energy discharge (-35). 10080_ R-10 Processor collects Corrupted Lgt. Nuclear Core. 10091_ Slammed into R-10 Processor. 10125_ System corrupted: Proton Cannon fused. 10144_ System corrupted: Energy discharge (-64). 10175_ Proton Cannon destroyed. Map ----- +----------------------------------------------------+ | ?????????????????????????# """" #???????# | | ?????????????????????????# """" #???????# | | ?????????????????????????# "" #???????# | | ????????????????????##+### """" """#???????# | | ??????????????????? """" F"#???????# | | ??????????????????# """" """#???????# | | ?????????????????? "" #???????# " | | ??????????????????# #???????# " | | ??????????????????# #???????# " | | ??????????????????# ######### #???????# ? | | ??????????????????# # # #???????# ? | | ??????????????????# #"""" # #???????# ? | | ??????????????????# #"""" # #???????? ?? | | ??????????????????# #""" # #??????????? | | ??????????????????# #"""" / s??????????? | | ??????????????????# # # #??????????? | | ??????????????????# #"""" # #??????????? | | ?????############## #"""" # #??????????? | | ?????# s # #"""" # ?????????? | | ?????# "" # #"""" # ???????? | | ?????# """ # + p # """ """?????? | | ?????# "Fss s # #"""" # ""F"" """?????? | | ?????# """s""" # #"""" # "" "" ""??????? | | ?????# "" """ # #"""" # ??? ??????? | | ?????# """ # #"""" # ??"??? ??????? | | ?????# # #@ p # ?????????????? | | ?????# """ """ + # # ?????????????? | | ?????# """ """ # ######### ?????????????? | | ?????# """ """ # #???????? ?????????????? | | ?????# + #????????????????????????? | | ????????#############+#+#????????????????????????? | | ?????????????????????????????????????????????????? | | ?????????????????????????????????????????????????? | | ?????????????????????????????????????????????????? | | ?????????????????????????????????????????????????? | | ?????????????????????????????????????????????????? | | ?????????????????????????????????????????????????? | | ?????????????????????????????????????????????????? | | ?????????????????????????????????????????????????? | | ?????????????????????????????????????????????????? | | ?????????????????????????????????????????????????? | | ?????????????????????????????????????????????????? | | ?????????????????????????????????????????????????? | | ?????????????????????????????????????????????????? | | ?????????????????????????????????????????????????? | | ?????????????????????????????????????????????????? | | ?????????????????????????????????????????????????? | | ?????????????????????????????????????????????????? | | ?????????????????????????????????????????????????? | | ?????????????????????????????????????????????????? | +----------------------------------------------------+ Best States ------------- Heat Dissipation 40 Energy Generation 23 Energy Capacity 460 Matter Stores 300 Matter Capacity 550 Sight Range 16 Robot Scan Range 20 Terrain Scan Density 10 Armor Coverage 600 Resistance: TH 10 Power Shielding 66 Evasion (%) 55 Recoil Reduction 2 Particle Charging 20 Kinecelleration 30 Item Schematics ----------------- Fission Core | -8/Storage | Hacked Robot Schematics ------------------ None Fabricated ------------ Nothing Alien Tech Used ----------------- None Achievements -------------- None Challenges ------------ None Game ------ Seed KineticWarpSteel Manual? 0 Play Time 00:52:43 Cumulative 34.7 hours Start 2023.10.08 @ 17:22:20 End 2023.10.08 @ 18:15:11 Sessions 1 Manual Loads 0 Difficulty Rogue Special Mode None Game No. 66 Rogue 63 Adventurer 3 Explorer 0 Win Type - Total 0 Types 0/0/0/0/0/0/0/0/0 Lore% 22 Gallery% 36 Achievement% 25 Wizard Run 0 Options --------- ASCII 0 Keyboard 0 Movement Mouse Keybinds 0 Fullscreen 2 Font 18/SmallcapsGlow Map View 76x50 Tactical HUD 1 Map Filters NONE Filters NONE Steam 1 RUN: ff80bba4-8f6f-41f7-9cfe-67243f817fd2